bitfinex/quotes_ETHUSD_20260208
["timestamp","ask_amount","ask_price","bid_price","bid_amount"]
[1770519641274,1.19474313,2092.5,2091.8,1.19614103]
[1770519641445,1.19474313,2092.5,2091.8,0.001]
[1770519641847,2.13124182,2092.5,2092.0,0.001]
[1770519642071,0.93649869,2092.4,2092.0,0.001]
[1770519642443,0.002,2092.3,2092.0,0.001]
[1770519642656,0.97893733,2092.3,2091.8,0.001]
[1770519643180,0.97893733,2092.3,2091.2,0.93532564]
[1770519643351,0.97893733,2092.3,2091.2,2.13080809]
[1770519643757,0.93649869,2092.1,2091.2,0.93532564]
[1770519643949,0.93649869,2092.1,2091.2,2.13080558]
[1770519644756,0.93649869,2092.1,2091.2,0.93532564]
[1770519645073,1.19491444,2092.2,2091.0,2.1308955]
[1770519645074,0.97693733,2092.0,2091.0,2.1308955]
[1770519645290,0.97693733,2092.0,2091.1,0.93532564]
[1770519645494,0.97693733,2092.0,2091.1,2.13086832]
[1770519645649,0.93649869,2092.0,2091.2,0.93532564]
[1770519647652,1.1950858,2091.9,2091.2,0.93532564]
[1770519648695,2.13158449,2091.9,2091.0,2.13088314]
[1770519648988,2.13158449,2091.9,2091.1,0.93532564]
[1770519649890,0.93649869,2091.8,2090.9,0.001]
[1770519650381,0.93649869,2091.8,2091.0,0.93532564]
[1770519650548,1.1950858,2091.9,2091.1,0.93532564]
[1770519650754,2.13158449,2091.9,2091.1,0.93532564]
[1770519653954,1.1950858,2091.9,2091.1,0.93532564]
[1770519654154,0.93649869,2091.8,2091.1,0.93532564]
[1770519655056,0.93649869,2091.8,2091.1,0.93632564]
[1770519656081,1.19520007,2091.7,2091.1,0.93632564]
[1770519657283,1.19520007,2091.7,2091.1,0.001]
[1770519657284,0.93649869,2091.6,2091.1,0.001]
[1770519657479,4.12374335,2091.6,2091.1,0.001]
[1770519657681,1.23563871,2091.7,2091.1,0.001]
[1770519657682,2.13169876,2091.7,2091.1,0.001]
[1770519658687,1.19520007,2091.7,2091.1,0.93632564]
[1770519660286,0.93649869,2091.8,2091.1,0.93632564]
[1770519660985,0.89849041,2091.8,2091.1,0.93632564]
[1770519662170,1.19520007,2091.7,2091.1,0.93632564]
[1770519662692,1.19520007,2091.7,2091.1,0.001]
[1770519662693,0.93649869,2091.6,2091.1,0.001]
[1770519664390,1.19531436,2091.5,2091.1,0.001]
[1770519670884,2.10813489,2091.5,2091.1,0.001]
[1770519673583,0.92405069,2091.4,2091.1,0.001]
[1770519673969,1.19531436,2091.5,2091.1,0.001]
[1770519675294,0.92405069,2091.5,2091.1,0.001]
[1770519677697,2.11942221,2091.4,2091.1,0.001]
[1770519679469,0.92405069,2091.3,2091.1,0.001]
[1770519680290,2.11952004,2091.3,2091.1,0.001]
[1770519681068,1.19546935,2091.3,2091.1,0.001]
[1770519682694,4.78152189,2091.4,2091.1,0.001]
[1770519682903,5.70557258,2091.4,2091.1,0.001]
[1770519683199,0.92405069,2091.3,2091.0,0.001]
[1770519685006,5.74601122,2091.4,2091.0,0.001]
[1770519685305,4.82196053,2091.4,2091.0,0.001]
[1770519686304,5.74601122,2091.4,2091.0,0.001]
[1770519686489,0.92405069,2091.3,2091.0,0.001]
[1770519686892,1.19548584,2091.2,2091.0,0.001]
[1770519687813,1.19531436,2091.5,2091.0,0.9928736]
[1770519688382,2.11936505,2091.5,2091.0,0.001]
[1770519689322,0.96448933,2091.4,2091.0,0.001]
[1770519689697,0.9510999,2091.4,2091.0,0.001]
[1770519691385,2.11947937,2091.3,2091.0,0.001]
[1770519693812,2.11947937,2091.3,2091.2,0.001]
[1770519694108,0.92405069,2091.2,2091.0,0.001]
[1770519694309,0.96448933,2091.0,2090.3,0.9918736]
[1770519695492,0.96448933,2091.0,2090.1,0.9928736]
[1770519695815,0.95341841,2090.6,2090.1,0.001]
[1770519696187,0.04043864,2090.4,2089.8,0.001]
[1770519697186,5.07681687,2090.1,2089.8,0.001]
[1770519697401,5.11725551,2090.1,2089.8,0.001]
[1770519697616,1.19617224,2090.0,2089.8,0.001]
[1770519698219,1.19617224,2090.0,2089.6,0.001]
[1770519698599,4.78239032,2091.1,2089.9,0.93413325]
[1770519698600,1.19582894,2090.6,2089.9,0.93413325]
[1770519699225,1.19582894,2090.6,2089.7,0.93413325]
[1770519699226,0.95341841,2090.5,2089.7,0.93413325]
[1770519699616,1.23626758,2090.6,2089.7,0.93413325]
[1770519700627,0.04043864,2090.8,2089.9,0.93413325]
[1770519701356,0.1024,2090.9,2089.9,0.93413325]
[1770519701829,1.19571455,2090.8,2090.0,0.93413325]
[1770519702029,2.1895716,2090.8,2090.0,0.93413325]
[1770519702393,1.23615319,2090.8,2090.0,0.93413325]
[1770519702821,2.1895716,2090.8,2090.0,0.93413325]
[1770519703320,0.95341841,2090.7,2090.0,0.93413325]
[1770519704413,0.95341841,2090.7,2089.7,4.78535528]
[1770519704414,1.19582894,2090.6,2089.7,0.93413325]
[1770519704615,1.19582894,2090.6,2089.8,0.93413325]
[1770519705123,0.04043864,2090.5,2089.8,0.93413325]
[1770519705595,0.99385705,2090.5,2089.8,0.93413325]
[1770519705895,0.99385705,2090.5,2090.2,0.001]
[1770519706497,1.19594336,2090.4,2090.2,0.001]
[1770519706894,0.04043864,2090.1,2089.6,0.93513325]
[1770519708506,1.23660826,2090.1,2089.6,0.001]
[1770519709808,1.23660826,2090.1,2089.2,0.001]
[1770519709809,4.12339846,2089.7,2089.2,0.001]
[1770519710121,6.31342513,2090.1,2089.2,0.93513325]
[1770519710433,2.19002667,2090.1,2089.2,0.93513325]
[1770519712221,2.19002667,2090.1,2089.2,2.1317138]
[1770519712437,1.19616962,2090.1,2089.3,0.93413325]
[1770519715325,1.19616962,2090.1,2089.3,5.05753171]
[1770519715524,1.19616962,2090.1,2089.4,0.93413325]
[1770519717467,1.2365329,2090.2,2089.5,0.93413325]
[1770519718152,0.95341841,2090.7,2089.8,0.93413325]
[1770519718354,1.23626758,2090.6,2089.8,0.93413325]
[1770519718848,0.002,2090.0,2089.8,0.93413325]
[1770519721665,0.002,2090.0,2089.4,0.93513325]
[1770519721830,0.002,2090.0,2089.4,2.13164792]
[1770519722028,0.002,2090.0,2089.4,0.93513325]
[1770519723434,0.002,2090.0,2089.6,0.93413325]
[1770519724044,0.002,2090.0,2089.4,0.93513325]
[1770519724752,0.95541841,2090.0,2089.4,0.001]
[1770519725055,4.1638371,2089.9,2089.4,0.001]
[1770519725228,0.04043864,2089.9,2089.4,0.001]
[1770519725566,0.95541841,2090.0,2089.4,0.001]
[1770519725861,1.19622948,2089.9,2089.4,0.001]
[1770519726231,1.19622948,2089.9,2089.4,0.9739143]
[1770519727232,0.902355,2089.8,2089.4,0.001]
[1770519727629,1.19634397,2089.7,2089.4,0.001]
[1770519728052,1.19634397,2089.7,2089.2,0.001]
[1770519728662,0.04043864,2089.6,2089.2,0.001]
[1770519729843,1.19645848,2089.5,2089.2,0.001]
[1770519730168,2.09881348,2089.5,2089.0,0.001]
[1770519731550,2.09881348,2089.5,2089.1,0.001]
[1770519731936,0.04043864,2089.3,2088.8,0.001]
[1770519732139,0.902355,2089.4,2088.8,0.001]
[1770519732766,0.04043864,2089.3,2088.8,0.001]
[1770519733447,1.19645848,2089.5,2088.8,0.91346613]
[1770519734760,1.19838127,2089.7,2088.9,0.91246613]
[1770519735553,0.002,2089.7,2088.9,0.91246613]
[1770519735764,1.1983549,2089.7,2088.9,0.91246613]
[1770519736465,0.002,2089.7,2089.1,0.91246613]
[1770519738573,0.002,2089.7,2089.3,0.91246613]
[1770519741146,0.002,2089.7,2089.5,0.91246613]
[1770519741851,0.002,2089.9,2089.6,0.91246613]
[1770519742748,0.002,2090.2,2089.6,0.91246613]
[1770519743358,0.002,2090.2,2089.8,0.91246613]
[1770519744155,0.002,2089.9,2089.8,0.91246613]
[1770519745480,0.002,2089.9,2089.7,1.19634357]
[1770519746574,0.002,2089.9,2089.6,2.10883006]
[1770519746875,0.002,2089.9,2089.7,1.19634089]
[1770519747076,0.002,2089.9,2089.8,1.19628672]
[1770519747385,0.002,2089.9,2089.8,0.91246613]
[1770519747882,0.002,2089.9,2089.8,2.10875285]
[1770519748376,0.002,2089.9,2089.8,0.91246613]
[1770519750159,0.002,2089.9,2089.6,2.10884063]
[1770519750688,0.002,2089.9,2089.5,1.19742156]
[1770519751484,0.002,2089.9,2089.5,1.1974541]
[1770519751984,0.002,2089.9,2089.5,1.19745409]
[1770519752291,0.002,2089.9,2089.5,0.001]
[1770519754367,0.002,2089.9,2089.5,1.19745848]
[1770519754994,0.002,2089.9,2089.5,0.001]
[1770519755184,0.96754401,2089.9,2089.5,0.001]
[1770519756068,0.002,2089.8,2089.5,0.001]
[1770519757082,0.002,2089.8,2089.5,0.94573932]
[1770519758488,0.002,2089.8,2089.5,0.001]
[1770519762298,0.97258914,2089.7,2088.8,0.94573932]
[1770519762467,0.97258914,2089.7,2088.9,1.19679077]
[1770519763475,1.19640122,2089.6,2088.9,1.19679077]
[1770519763676,1.19833644,2089.8,2089.0,0.94473932]
[1770519764387,1.19830588,2089.8,2089.0,0.94473932]
[1770519765565,2.13045638,2089.8,2089.0,2.14145464]
[1770519766401,2.13045638,2089.8,2089.1,0.94473932]
[1770519767972,0.9321505,2089.7,2089.0,1.19671532]
[1770519768185,0.9321505,2089.7,2089.0,2.14145464]
[1770519768584,0.9321505,2089.7,2089.2,0.001]
[1770519768877,0.002,2089.8,2089.2,0.94573932]
[1770519770606,0.002,2089.8,2089.3,1.19657301]
[1770519770789,0.002,2089.8,2089.4,0.94473932]
[1770519774925,0.002,2089.8,2089.4,2.14125059]
[1770519780915,0.9341505,2089.8,2089.2,0.001]
[1770519781091,0.97258914,2089.7,2089.2,0.001]
[1770519781297,0.97258914,2089.7,2089.4,0.001]
[1770519781501,0.97258914,2089.7,2089.2,0.001]
[1770519783024,2.16893873,2089.7,2089.2,0.001]
[1770519784218,1.19833019,2089.8,2089.2,0.001]
[1770519784597,1.19833019,2089.8,2089.2,0.94573932]
[1770519785619,0.96103284,2089.8,2089.2,0.94573932]
[1770519785815,0.96103284,2089.8,2089.2,0.001]
[1770519786520,0.002,2089.8,2089.2,2.1335513]
[1770519786701,0.002,2089.8,2089.3,0.93592653]
[1770519788022,0.002,2089.8,2089.5,0.93592653]
[1770519788405,0.002,2089.8,2089.3,0.93592653]
[1770519788598,0.002,2089.8,2089.2,1.19759021]
[1770519789819,0.002,2089.8,2089.3,2.13249585]
[1770519790125,0.002,2089.8,2089.5,0.93592653]
[1770519794333,0.002,2089.6,2089.5,0.93592653]
[1770519799726,0.002,2089.6,2089.4,0.001]
[1770519800048,0.002,2089.6,2089.4,0.92916407]
[1770519801641,0.002,2089.8,2089.4,0.92916407]
[1770519801812,0.002,2090.0,2089.7,0.92816407]
[1770519802838,0.002,2090.0,2089.5,2.12462255]
[1770519803026,0.98195187,2090.0,2089.4,1.1974864]
[1770519805920,0.98195187,2090.0,2089.4,2.12565047]
[1770519806646,0.002,2090.0,2089.5,0.92816407]
[1770519806849,0.002,2090.0,2089.6,0.001]
[1770519807148,0.002,2089.8,2089.6,0.001]
[1770519813970,0.98195187,2089.8,2089.2,0.001]
[1770519814253,0.97995187,2089.6,2089.1,0.001]
[1770519814560,0.97995187,2089.6,2089.1,0.002]
[1770519815732,0.97927583,2089.8,2089.1,0.97119221]
[1770519818247,0.97927583,2089.8,2088.3,4.78951442]
[1770519818248,0.04043864,2089.0,2088.3,4.78951442]
[1770519818446,0.97727583,2089.1,2088.3,2.16730771]
[1770519819252,0.04043864,2089.0,2088.3,2.16730771]
[1770519819434,0.97727583,2089.1,2088.3,2.16730771]
[1770519820841,0.97727583,2089.3,2088.5,0.97019221]
[1770519821046,2.17381997,2089.4,2088.5,0.97019221]
[1770519821952,0.97727583,2089.3,2088.5,0.97019221]
[1770519822123,0.97727583,2089.3,2088.5,0.001]
[1770519822456,0.97727583,2089.0,2088.5,0.001]
[1770519823130,0.97727583,2089.0,2088.2,0.001]
[1770519823131,1.01771447,2088.6,2088.2,0.001]
[1770519823325,1.01771447,2088.6,2087.9,0.001]
[1770519823326,0.04043864,2088.4,2087.9,0.001]
[1770519823526,0.04043864,2088.5,2087.9,0.001]
[1770519824765,0.97727583,2088.8,2088.0,2.16649884]
[1770519824929,0.97727583,2088.8,2088.1,0.96919221]
[1770519825129,1.19691674,2088.7,2088.1,0.96919221]
[1770519825656,1.19691674,2088.7,2087.9,2.16753181]
[1770519826434,1.19691674,2088.7,2087.9,0.97019221]
[1770519826630,0.97727583,2088.6,2087.9,0.001]
[1770519827541,0.97727583,2088.3,2087.3,0.96919221]
[1770519827734,0.04043864,2088.4,2087.1,0.96999221]
[1770519827735,1.01771447,2088.0,2087.1,0.96999221]
[1770519828135,0.04043864,2088.4,2087.1,0.96999221]
[1770519828136,1.12011447,2088.4,2087.1,0.96999221]
[1770519828336,1.01771447,2088.1,2087.1,0.96999221]
[1770519828755,1.01771447,2088.1,2087.1,0.0008]
[1770519829138,1.01771447,2087.8,2087.1,0.0008]
[1770519829657,0.04043864,2087.5,2087.1,0.0008]
[1770519830663,2.17476589,2087.7,2087.1,0.0008]
[1770519831164,1.19749006,2087.7,2087.1,0.0008]
[1770519831668,1.19749006,2087.7,2087.3,0.001]
[1770519832238,1.23788166,2087.8,2087.3,0.001]
[1770519832576,0.97727583,2087.7,2087.3,0.001]
[1770519833160,0.97727583,2087.7,2086.8,0.96919221]
[1770519833548,0.97727583,2087.7,2086.8,2.16718633]
[1770519834143,0.97727583,2087.7,2086.9,0.96919221]
[1770519834336,2.17477439,2087.7,2086.9,0.96919221]
[1770519834540,2.17468103,2087.9,2086.9,0.96919221]
[1770519835556,0.97727583,2087.8,2086.9,0.96919221]
[1770519836274,2.17473177,2087.8,2087.0,2.16708392]
[1770519839069,2.17463373,2088.0,2087.1,0.96919221]
[1770519839278,0.04043864,2087.1,2086.4,1.19820755]
[1770519839446,0.04043864,2087.5,2086.6,1.19807718]
[1770519839447,1.01771447,2087.5,2086.6,1.19807718]
[1770519839642,0.04043864,2087.1,2086.5,0.96919221]
[1770519840271,0.97727583,2087.3,2086.4,1.19819823]
[1770519840443,1.01771447,2087.2,2086.4,1.19819823]
[1770519840869,1.01771447,2087.2,2086.3,2.16744856]
[1770519841072,2.17511014,2087.1,2086.3,2.16744856]
[1770519842978,0.04043864,2086.9,2086.3,2.16744856]
[1770519844256,0.04043864,2087.4,2086.4,0.96919221]
[1770519844452,1.01771447,2087.4,2086.4,0.96919221]
[1770519844761,1.01771447,2087.4,2086.5,0.97019221]
[1770519845168,0.97727583,2087.2,2086.5,2.16835645]
[1770519846479,2.18378519,2087.4,2086.6,0.9640371]
[1770519846774,1.19759754,2087.6,2086.6,0.9640371]
[1770519846967,0.04043864,2087.5,2086.6,0.9640371]
[1770519847148,2.18390521,2087.2,2086.5,0.9650371]
[1770519847946,0.98609143,2087.2,2086.5,2.16320653]
[1770519848152,0.94565279,2087.4,2086.6,0.9640371]
[1770519848351,1.19775626,2087.3,2086.6,0.9640371]
[1770519849978,1.19775626,2087.3,2086.6,2.16215578]
[1770519850179,2.14340905,2087.3,2086.6,1.19811868]
[1770519850682,2.14340905,2087.3,2086.6,2.16215578]
[1770519850683,1.19775626,2087.3,2086.6,2.16215578]
[1770519850877,1.19757316,2087.6,2086.7,0.9640371]
[1770519851377,2.14517649,2087.7,2086.7,0.9640371]
[1770519851676,1.1995237,2087.7,2086.7,0.9640371]
[1770519851983,0.002,2087.7,2086.9,0.9640371]
[1770519852279,0.002,2087.7,2086.6,0.9640371]
[1770519852280,0.04043864,2087.2,2086.6,0.9640371]
[1770519852775,0.04043864,2087.2,2086.6,2.16215616]
[1770519852955,0.04043864,2086.9,2086.5,0.001]
[1770519853472,0.04043864,2086.9,2086.8,0.0008]
[1770519853861,0.04043864,2086.9,2086.5,0.001]
[1770519854063,1.23839258,2086.9,2086.5,0.001]
[1770519854982,2.20231975,2086.9,2086.5,0.001]
[1770519855355,1.00436581,2086.6,2086.3,0.001]
[1770519855561,1.00436581,2086.6,2086.2,0.001]
[1770519855876,0.04043864,2086.3,2086.2,0.001]
[1770519857094,0.04043864,2086.3,2085.6,2.13414019]
[1770519857390,0.04043864,2086.3,2085.6,1.19865982]
[1770519857600,1.23874015,2086.3,2085.6,1.19865982]
[1770519857774,1.23874015,2086.3,2086.1,0.001]
[1770519858265,0.96392717,2086.2,2085.4,0.004]
[1770519858457,0.04043864,2086.0,2085.4,1.20279823]
[1770519859385,0.04043864,2086.0,2085.3,0.001]
[1770519859386,0.04043864,2085.5,2085.3,0.001]
[1770519859594,0.04043864,2085.5,2085.1,0.003]
[1770519859895,0.04043864,2085.4,2084.5,0.93548037]
[1770519860253,0.04043864,2085.1,2084.5,2.13479143]
[1770519860450,1.23926294,2085.4,2084.5,2.13479143]
[1770519860886,2.20319011,2085.4,2084.5,1.19931106]
[1770519861056,0.04043864,2085.1,2084.5,1.19931106]
[1770519861257,2.20319011,2085.4,2084.5,1.19931106]
[1770519862269,2.20319011,2085.4,2084.4,5.73279387]
[1770519863003,1.30109581,2085.6,2084.5,0.93548037]
[1770519863290,0.04043864,2085.5,2084.5,0.93548037]
[1770519864889,1.19864926,2085.7,2084.7,0.93548037]
[1770519865097,0.04043864,2085.7,2084.7,0.93548037]
[1770519865392,1.19855579,2085.9,2084.7,0.93548037]
[1770519865586,0.14283864,2086.1,2084.7,0.93548037]
[1770519865788,0.04043864,2086.2,2084.7,0.93548037]
[1770519866375,1.19825378,2086.4,2084.7,0.93548037]
[1770519866587,0.1024,2086.4,2084.7,0.93548037]
[1770519866963,1.23865935,2086.5,2084.9,0.93548037]
[1770519867694,0.04043864,2086.4,2084.9,0.93548037]
[1770519867885,0.1024,2086.5,2084.9,0.93548037]
[1770519868088,0.04043864,2086.4,2084.9,0.93548037]
[1770519868394,1.19816345,2086.6,2084.8,1.19915579]
[1770519868395,1.19816345,2086.6,2085.1,0.93548037]
[1770519868996,0.04043864,2086.7,2085.3,0.93548037]
[1770519868997,1.34094209,2086.7,2085.3,0.93548037]
[1770519869295,0.04043864,2086.4,2085.3,0.93548037]
[1770519869476,0.04043864,2086.1,2085.3,0.93548037]
[1770519870968,0.04043864,2086.1,2085.4,1.19881077]
[1770519873691,1.19846596,2086.0,2085.3,2.13434312]
[1770519873894,0.002,2086.3,2085.4,0.93548037]
[1770519874096,1.20031061,2086.3,2085.4,0.93548037]
[1770519874679,2.16423778,2086.3,2085.4,0.93548037]
[1770519875779,2.16423778,2086.3,2085.5,1.19875329]
[1770519876367,0.002,2086.3,2085.6,0.91431012]
[1770519878373,0.002,2086.3,2085.7,2.11294846]
[1770519878775,0.04043864,2085.8,2084.9,1.19906813]
[1770519878968,0.04043864,2085.8,2084.8,5.71093072]
[1770519878969,0.04043864,2085.5,2084.7,4.79776523]
[1770519879277,0.04043864,2085.5,2084.8,1.19912569]
[1770519879599,0.91429015,2085.7,2084.8,1.19912569]
[1770519880205,0.04043864,2085.5,2084.8,1.19912569]
[1770519880705,0.04043864,2085.5,2084.7,0.001]
[1770519880706,2.15348294,2085.5,2084.7,0.001]
[1770519880884,0.91429015,2085.5,2084.7,0.001]
[1770519882006,2.11293515,2085.7,2084.7,0.91531012]
[1770519882222,2.11292989,2085.7,2084.7,0.91531012]
[1770519883108,2.11292989,2085.7,2084.8,1.19915579]
[1770519883408,1.19844561,2086.1,2084.9,0.91431012]
[1770519883777,2.1531744,2086.1,2084.9,0.91431012]
[1770519883975,0.91429015,2086.0,2084.9,0.91431012]
[1770519884373,1.24077245,2086.3,2084.9,0.91431012]
[1770519884575,0.91429015,2086.2,2084.9,0.91531012]
[1770519885209,0.002,2086.1,2085.0,1.19904076]
[1770519885416,0.95472879,2086.0,2085.0,1.19904076]
[1770519886072,0.002,2086.1,2085.1,0.91431012]
[1770519886508,0.04043864,2086.0,2085.1,0.91431012]
[1770519886884,0.91629015,2086.1,2085.1,0.91431012]
[1770519887291,2.1147374,2086.1,2085.2,1.19892576]
[1770519887693,0.95472879,2086.0,2085.2,1.19892576]
[1770519889711,2.15320683,2086.0,2085.2,1.19892576]
[1770519890415,0.04043864,2085.7,2085.1,1.19894155]
[1770519890595,0.91429015,2085.7,2085.1,1.19897682]
[1770519892091,0.91429015,2085.7,2084.9,0.001]
[1770519894512,0.91429015,2085.6,2084.9,0.001]
[1770519896613,0.91629015,2086.1,2084.9,0.91531012]
[1770519896912,1.20042867,2086.1,2084.9,0.91531012]
[1770519897087,0.002,2086.1,2084.9,0.91531012]
[1770519897416,2.11471083,2086.1,2084.9,0.91531012]
[1770519898194,2.11471083,2086.1,2085.0,0.001]
[1770519898393,2.11471083,2086.1,2085.1,0.91431012]
[1770519898806,0.91629015,2086.1,2085.1,0.91431012]
[1770519899010,0.91629015,2086.1,2085.2,2.11323588]
[1770519899518,0.002,2086.1,2085.3,0.91431012]
[1770519900914,0.002,2086.1,2085.4,1.19881077]
[1770519901116,0.002,2086.1,2085.4,2.11312089]
[1770519901730,0.002,2086.1,2085.5,0.91431012]
[1770519902795,0.002,2086.3,2085.5,0.91431012]
[1770519903112,0.002,2087.0,2085.9,0.91431012]
[1770519903701,0.002,2087.2,2086.2,0.91431012]
[1770519904824,0.91429015,2087.0,2085.9,0.91431012]
[1770519905003,0.91429015,2087.0,2086.0,1.19846596]
[1770519905210,0.91429015,2087.0,2086.0,2.11277608]
[1770519905406,0.002,2087.2,2086.1,0.91431012]
[1770519905608,1.19977974,2087.2,2086.1,0.91431012]
[1770519905808,2.11286052,2087.2,2086.1,0.91431012]
[1770519906699,0.95351942,2087.1,2086.0,1.19846596]
[1770519907119,1.23846715,2086.8,2085.9,4.79386385]
[1770519907315,2.15154793,2086.8,2085.8,0.9086237]
[1770519907520,0.91308078,2086.7,2085.9,1.19852341]
[1770519907838,0.91308078,2086.7,2085.8,1.19856541]
[1770519909234,2.11118644,2086.7,2085.7,4.79449784]
[1770519910426,0.91308078,2086.6,2085.6,1.19865646]
[1770519911228,0.91308078,2086.6,2085.6,2.10728016]
[1770519911433,0.91308078,2086.6,2086.0,0.001]
[1770519911627,1.19810566,2086.7,2086.0,0.001]
[1770519912316,1.20004882,2086.8,2086.0,0.001]
[1770519912829,0.002,2086.8,2086.0,0.90564138]
[1770519913630,0.002,2086.8,2086.1,1.19840851]
[1770519914128,0.002,2087.0,2086.2,0.90464138]
[1770519915813,0.002,2087.0,2086.4,0.90464138]
[1770519917832,0.002,2087.0,2086.5,1.19817876]
[1770519918615,0.002,2087.0,2086.5,2.10282014]
[1770519919130,0.002,2087.0,2086.5,1.19817876]
[1770519919932,0.002,2087.0,2086.3,1.19829362]
[1770519920236,0.002,2087.0,2086.3,2.102935]
[1770519920638,0.002,2087.0,2086.4,0.90464138]
[1770519922621,0.002,2087.2,2086.6,0.90464138]
[1770519922913,0.002,2087.7,2086.7,0.90464138]
[1770519924125,0.002,2086.8,2086.7,0.90464138]
[1770519924320,0.002,2087.0,2086.6,0.90464138]
[1770519924508,0.002,2087.7,2086.6,0.90464138]
[1770519924711,0.002,2087.7,2086.8,0.90464138]
[1770519926839,0.002,2087.7,2086.9,2.10259049]
[1770519932344,0.95368969,2087.7,2086.8,1.19797985]
[1770519932719,0.95368969,2087.7,2086.7,1.19803903]
[1770519932920,0.95368969,2087.7,2086.8,1.1980031]
[1770519933134,0.95168969,2087.5,2086.4,5.69738727]
[1770519934942,0.95168969,2087.5,2086.5,0.90464138]
[1770519935151,2.14932198,2087.5,2086.6,1.19812134]
[1770519936240,0.97271188,2087.4,2086.6,1.19812134]
[1770519936634,0.002,2087.3,2086.6,1.19812134]
[1770519937622,0.002,2087.3,2086.7,0.90375623]
[1770519939546,0.002,2087.3,2086.8,1.19800651]
[1770519941931,0.97471188,2087.3,2086.6,4.79202606]
[1770519943732,0.002,2087.3,2086.7,0.90375623]
[1770519943932,0.002,2087.3,2086.8,1.19800651]
[1770519949753,0.002,2087.3,2086.8,1.19900651]
[1770519950344,0.97471188,2087.3,2086.8,1.19900651]
[1770519952256,0.97471188,2087.3,2086.8,0.001]
[1770519955862,0.97271188,2087.2,2086.8,0.001]
[1770519956033,1.01315052,2087.2,2086.5,0.001]
[1770519957861,1.19783431,2087.1,2086.5,0.001]
[1770519958042,0.97271188,2087.0,2086.5,0.001]
[1770519960849,0.97271188,2087.0,2086.3,0.001]
[1770519961048,0.97271188,2087.0,2085.5,1.19872519]
[1770519961049,0.97271188,2086.4,2085.5,1.19872519]
[1770519961252,0.97271188,2086.1,2085.7,0.002]
[1770519961954,0.97271188,2086.7,2085.8,0.002]
[1770519962165,0.97271188,2086.5,2085.8,0.002]
[1770519962743,0.97271188,2086.5,2085.9,0.001]
[1770519963237,0.97271188,2086.5,2086.0,0.002]
[1770519964465,2.17094807,2086.4,2086.0,0.002]
[1770519964650,0.97271188,2086.4,2086.0,0.002]
[1770519965044,0.97271188,2086.6,2086.0,0.002]
[1770519966464,0.99018288,2086.5,2086.0,0.002]
[1770519966668,2.18828848,2086.7,2086.0,0.002]
[1770519967348,0.99018288,2086.6,2086.0,0.002]
[1770519968677,0.99018288,2086.4,2086.0,0.002]
[1770519969846,2.18827326,2086.7,2086.0,0.002]
[1770519970268,2.18827326,2086.7,2086.1,0.002]
[1770519970478,2.18827326,2086.7,2086.0,0.002]
[1770519970771,2.18827326,2086.7,2086.0,1.20046596]
[1770519970974,0.99018288,2086.6,2086.0,0.002]
[1770519971358,0.99018288,2086.8,2086.0,0.002]
[1770519972476,2.15981095,2087.0,2086.0,0.98626338]
[1770519972698,0.96191578,2086.8,2086.1,1.19840851]
[1770519973255,0.96191578,2086.8,2086.2,0.002]
[1770519975077,0.96191578,2086.7,2086.2,0.002]
[1770519975277,0.002,2086.6,2086.0,0.001]
[1770519975458,0.96191578,2086.5,2086.2,0.002]
[1770519975979,0.96191578,2086.5,2086.0,0.001]
[1770519976178,0.96191578,2086.5,2086.1,0.002]
[1770519976378,0.002,2086.6,2086.1,0.002]
[1770519977696,0.002,2086.6,2086.1,0.98626338]
[1770519978192,0.002,2086.8,2086.1,0.98426338]
[1770519978983,0.002,2086.8,2086.3,0.98426338]
[1770519979763,0.002,2087.1,2086.3,0.98426338]
[1770519981066,0.002,2087.1,2086.4,2.18249957]
[1770519981480,0.002,2087.1,2086.5,0.98426338]
[1770519983391,0.002,2087.1,2086.6,1.19812134]
[1770519984993,0.002,2087.3,2086.7,0.98426338]
[1770519985368,0.002,2087.3,2086.8,1.19800651]
[1770519986700,0.002,2087.5,2086.8,2.18226989]
[1770519987273,0.002,2087.5,2086.6,4.79202606]
[1770519987274,0.96191578,2087.2,2086.3,1.19829362]
[1770519987597,0.96191578,2087.2,2086.2,1.19832447]
[1770519987971,0.96191578,2086.9,2086.2,1.19833352]
[1770519988167,0.96191578,2086.9,2086.0,1.19942582]
[1770519988372,0.96191578,2086.6,2086.0,1.19942501]
[1770519989675,0.96191578,2086.6,2086.4,0.001]
[1770519991291,0.96191578,2086.5,2086.1,0.001]
[1770519991498,0.96191578,2086.5,2085.6,0.001]
[1770519991499,0.96191578,2086.1,2085.6,0.001]
[1770519991683,0.96191578,2085.8,2085.6,0.001]
[1770519992505,0.96191578,2085.8,2085.6,0.003]
[1770519992901,0.96191578,2085.8,2085.6,0.001]
[1770519993085,0.96191578,2085.8,2084.9,6.57922996]
[1770519993280,0.96191578,2085.8,2085.3,0.003]
[1770519993681,0.96191578,2085.7,2085.3,0.001]
[1770519994618,0.96191578,2085.9,2085.3,0.003]
[1770519995108,0.04043864,2086.3,2085.3,0.003]
[1770519995407,0.96191578,2086.2,2085.3,0.003]
[1770519996122,1.02969725,2086.5,2085.3,0.91318894]
[1770519996284,0.92729725,2086.3,2085.3,0.91318894]
[1770519998094,0.92729725,2086.3,2085.4,1.19881077]
[1770519999188,0.92729725,2086.3,2085.4,2.10899971]
[1770519999422,0.92729725,2086.3,2085.5,0.002]
[1770520000285,0.92729725,2086.3,2085.6,0.002]
[1770520000484,0.92729725,2086.3,2085.4,0.002]
[1770520001310,0.96773589,2086.7,2085.5,0.91018894]
[1770520002486,0.92729725,2086.3,2085.6,1.20069581]
[1770520003107,0.92729725,2086.3,2085.6,0.002]
[1770520003804,0.92929725,2086.1,2085.6,0.002]
[1770520004189,0.002,2086.1,2085.6,0.002]
[1770520009325,0.52742169,2086.6,2085.6,0.91218894]
[1770520011326,0.52742169,2086.6,2085.7,1.19863834]
[1770520011710,0.52742169,2086.6,2085.8,0.002]
[1770520012198,0.52742169,2086.8,2085.8,0.91218894]
[1770520013510,0.52742169,2086.8,2085.9,2.10871235]
[1770520014024,0.52742169,2086.8,2086.0,0.002]
[1770520014398,0.04043864,2086.7,2086.0,0.002]
[1770520015835,0.002,2087.0,2086.0,0.91218894]